fUSD/lending_fUSD_20250304
["ID","MTS","AMOUNT","RATE_DAILY","PERIOD"]
[355419529,1741129844183,-500.0,0.00012896,2]
[355419530,1741129844193,-500.0,0.00012896,2]
[355419531,1741129844202,-500.0,0.00012896,2]
[355419532,1741129844212,-1630.71,0.00012896,2]
[355419533,1741129844222,-500.0,0.00012896,2]
[355419534,1741129844232,-500.0,0.00012896,2]
[355419535,1741129844241,-1384.4,0.00012896,2]
[355419536,1741129844252,-500.0,0.00012896,2]
[355419537,1741129844261,-500.0,0.00012896,2]
[355419538,1741129844271,-506.00595674,0.00012896,2]
[355419539,1741129844280,-500.0,0.00012896,2]
[355419540,1741129844290,-500.0,0.00012896,2]
[355419541,1741129844299,-517.77763532,0.00012896,2]
[355419542,1741129844312,-500.0,0.00012896,2]
[355419543,1741129844322,-500.0,0.00012896,2]
[355419544,1741129844332,-2336.31,0.00012896,2]
[355419545,1741129844341,-500.0,0.00012896,2]
[355419546,1741129844351,-500.0,0.00012896,2]
[355419547,1741129844361,-500.0,0.00012896,2]
[355419548,1741129844371,-500.0,0.00012896,2]
[355419549,1741129844380,-500.0,0.00012896,2]
[355419550,1741129844390,-654.65,0.00012896,2]
[355419551,1741129844400,-500.0,0.00012896,2]
[355419552,1741129844409,-500.0,0.00012896,2]
[355419553,1741129844419,-502.1660564,0.00012896,2]
[355419554,1741129844428,-1310.75,0.00012896,2]
[355419555,1741129844438,-500.0,0.00012896,2]
[355419556,1741129844447,-500.0,0.00012896,2]
[355419557,1741129844457,-500.0,0.00012896,2]
[355419558,1741129844467,-500.0,0.00012896,2]
[355419559,1741129844476,-507.36523777,0.00012896,2]
[355419560,1741129844487,-504.81486384,0.00012896,2]
[355419561,1741129844496,-500.0,0.00012896,2]
[355419562,1741129844506,-500.0,0.00012896,2]
[355419563,1741129844516,-501.14390934,0.00012896,2]
[355419564,1741129844525,-500.0,0.00012896,2]
[355419565,1741129844535,-500.0,0.00012896,2]
[355419566,1741129844544,-1252.29,0.00012896,2]
[355419567,1741129844554,-536.65711354,0.00012896,2]
[355419568,1741129844564,-500.0,0.00012896,2]
[355419569,1741129844573,-500.0,0.00012896,2]
[355419570,1741129844582,-500.0,0.00012896,2]
[355419571,1741129844592,-500.0,0.00012896,2]
[355419572,1741129844601,-500.0,0.00012896,2]
[355419573,1741129844610,-1264.72,0.00012896,2]
[355419574,1741129844620,-1081.15,0.00012896,2]
[355419575,1741129844630,-500.0,0.00012896,2]
[355419576,1741129844639,-500.0,0.00012896,2]
[355419577,1741129844648,-500.0,0.00012896,2]
[355419578,1741129844658,-500.0,0.00012896,2]
[355419579,1741129844668,-500.0,0.00012896,2]
[355419580,1741129844677,-500.0,0.00012896,2]
[355419581,1741129844687,-500.0,0.00012896,2]
[355419582,1741129844697,-500.0,0.00012896,2]
[355419583,1741129844706,-1344.75,0.00012896,2]
[355419584,1741129844716,-500.0,0.00012896,2]
[355419585,1741129844726,-500.0,0.00012896,2]
[355419586,1741129844735,-552.34325864,0.00012896,2]
[355419587,1741129844744,-1091.94,0.00012896,2]
[355419588,1741129844754,-500.0,0.00012896,2]
[355419589,1741129844763,-500.0,0.00012896,2]
[355419590,1741129844774,-500.0,0.00012896,2]
[355419591,1741129844784,-500.0,0.00012896,2]
[355419592,1741129844793,-500.0,0.00012896,2]
[355419593,1741129844803,-500.0,0.00012896,2]
[355419594,1741129844813,-500.0,0.00012896,2]
[355419595,1741129844823,-500.0,0.00012896,2]
[355419596,1741129844832,-500.0,0.00012896,2]
[355419597,1741129844841,-1912.64,0.00012896,2]
[355419598,1741129844851,-500.0,0.00012896,2]
[355419599,1741129844861,-500.0,0.00012896,2]
[355419600,1741129844870,-500.0,0.00012896,2]
[355419601,1741129844879,-151.0,0.00012896,2]
[355419602,1741129844889,-500.0,0.00012896,2]
[355419603,1741129844898,-500.0,0.00012896,2]
[355419604,1741129844908,-500.0,0.00012896,2]
[355419605,1741129844917,-500.0,0.00012896,2]
[355419606,1741129844926,-500.0,0.00012896,2]
[355419607,1741129844936,-500.0,0.00012896,2]
[355419608,1741129844946,-500.0,0.00012896,2]
[355419609,1741129844956,-500.0,0.00012896,2]
[355419610,1741129844966,-500.0,0.00012896,2]
[355419611,1741129844975,-500.0,0.00012896,2]
[355419612,1741129844985,-1022.33,0.00012896,2]
[355419613,1741129844995,-500.0,0.00012896,2]
[355419614,1741129845006,-500.0,0.00012896,2]
[355419615,1741129845015,-500.0,0.00012896,2]
[355419616,1741129845024,-1804.97,0.00012896,2]
[355419617,1741129845033,-600.6439295,0.00012896,2]
[355419618,1741129845043,-1186.08,0.00012896,2]
[355419619,1741129845053,-500.0,0.00012896,2]
[355419620,1741129845064,-500.0,0.00012896,2]
[355419621,1741129845075,-500.0,0.00012896,2]
[355419622,1741129845087,-643.82,0.00012896,2]
[355419623,1741129845098,-500.0,0.00012896,2]
[355419624,1741129845111,-500.0,0.00012896,2]
[355419625,1741129845122,-1203.15,0.00012896,2]
[355419626,1741129845133,-400.46743466,0.00012896,2]
[355419627,1741129845144,-500.0,0.00012896,2]
[355419628,1741129845154,-500.0,0.00012896,2]
[355419629,1741129845163,-500.0,0.00012896,2]
[355419630,1741129845173,-500.0,0.00012896,2]
[355419631,1741129845183,-500.0,0.00012896,2]
[355419632,1741129845193,-686.14,0.00012896,2]
[355419633,1741129845203,-500.0,0.00012896,2]
[355419634,1741129845212,-501.23083657,0.00012896,2]
[355419635,1741129845225,-500.0,0.00012896,2]
[355419636,1741129845236,-500.0,0.00012896,2]
[355419637,1741129845246,-502.27978642,0.00012896,2]
[355419638,1741129845255,-500.0,0.00012896,2]
[355419639,1741129845264,-500.0,0.00012896,2]
[355419640,1741129845274,-500.0,0.00012896,2]
[355419641,1741129845284,-500.0,0.00012896,2]
[355419642,1741129845293,-501.72159873,0.00012896,2]
[355419643,1741129845303,-506.46518778,0.00012896,2]
[355419644,1741129845312,-1518.9,0.00012896,2]
[355419645,1741129845322,-500.0,0.00012896,2]
[355419646,1741129845332,-500.0,0.00012896,2]
[355419647,1741129845341,-500.0,0.00012896,2]
[355419648,1741129845351,-500.0,0.00012896,2]
[355419649,1741129845360,-501.22037299,0.00012896,2]
[355419650,1741129845369,-500.0,0.00012896,2]
[355419651,1741129845378,-500.0,0.00012896,2]
[355419652,1741129845387,-500.0,0.00012896,2]
[355419653,1741129845397,-932.92,0.00012896,2]
[355419654,1741129845406,-503.5890881,0.00012896,2]
[355419655,1741129845416,-539.90620469,0.00012896,2]
[355419656,1741129845426,-2291.4,0.00012896,2]
[355419657,1741129845434,-500.0,0.00012896,2]
[355419658,1741129845443,-500.0,0.00012896,2]
[355419659,1741129845453,-500.0,0.00012896,2]
[355419660,1741129845462,-507.07277655,0.00012896,2]
[355419661,1741129845473,-500.0,0.00012896,2]
[355419663,1741129845482,-500.83517319,0.00012896,2]
[355419665,1741129845492,-500.0,0.00012896,2]
[355419667,1741129845501,-500.0,0.00012896,2]
[355419669,1741129845511,-501.53025579,0.00012896,2]
[355419671,1741129845521,-500.0,0.00012896,2]
[355419673,1741129845531,-1020.86,0.00012896,2]
[355419675,1741129845540,-500.0,0.00012896,2]
[355419677,1741129845550,-500.0,0.00012896,2]
[355419679,1741129845559,-500.0,0.00012896,2]
[355419682,1741129845569,-500.0,0.00012896,2]
[355419684,1741129845578,-500.0,0.00012896,2]
[355419686,1741129845588,-500.54837065,0.00012896,2]
[355419688,1741129845597,-1053.96,0.00012896,2]
[355419690,1741129845606,-644.550762,0.00012896,2]
[355419692,1741129845616,-500.0,0.00012896,2]
[355419694,1741129845626,-500.0,0.00012896,2]
[355419696,1741129845636,-500.0,0.00012896,2]
[355419698,1741129845647,-500.0,0.00012896,2]
[355419700,1741129845656,-1321.15,0.00012896,2]
[355419711,1741129845805,-500.0,0.00012896,2]
[355419712,1741129845815,-500.53709432,0.00012896,2]
[355419713,1741129845824,-500.0,0.00012896,2]
[355419714,1741129845834,-500.0,0.00012896,2]
[355419715,1741129845843,-500.0,0.00012896,2]
[355419716,1741129845853,-500.0,0.00012896,2]
[355419717,1741129845862,-172.33392163,0.00012896,2]
[355419718,1741129845871,-1282.88,0.00012896,2]
[355419719,1741129845881,-1199.54,0.00012896,2]
[355419720,1741129845890,-500.0,0.00012896,2]
[355419721,1741129845899,-500.0,0.00012896,2]
[355419722,1741129845912,-500.0,0.00012896,2]
[355419723,1741129845929,-500.0,0.00012896,2]
[355419724,1741129845945,-500.0,0.00012896,2]
[355419725,1741129845965,-509.64351588,0.00012896,2]
[355419727,1741129845982,-892.8,0.00012896,2]
[355419728,1741129845993,-500.0,0.00012896,2]
[355419729,1741129846004,-500.0,0.00012896,2]
[355419730,1741129846024,-500.0,0.00012896,2]
[355419731,1741129846043,-500.0,0.00012896,2]
[355419732,1741129846052,-500.0,0.00012896,2]
[355419733,1741129846063,-1349.66,0.00012896,2]
[355419734,1741129846075,-500.0,0.00012896,2]
[355419735,1741129846086,-2493.02,0.00012896,2]
[355419736,1741129846099,-501.87476471,0.00012896,2]
[355419737,1741129846110,-500.0,0.00012896,2]
[355419738,1741129846121,-502.61497318,0.00012896,2]
[355419739,1741129846135,-500.0,0.00012896,2]
[355419740,1741129846145,-500.0,0.00012896,2]
[355419741,1741129846156,-500.43848706,0.00012896,2]
[355419742,1741129846169,-500.0,0.00012896,2]
[355419743,1741129846181,-828.17,0.00012896,2]
[355419744,1741129846190,-500.0,0.00012896,2]
[355419745,1741129846201,-151.0,0.00012896,2]
[355419746,1741129846212,-151.0,0.00012896,2]
[355419747,1741129846223,-188.5585,0.00012896,2]
[355419748,1741129846234,-500.0,0.00012896,2]
[355419749,1741129846244,-500.0,0.00012896,2]
[355419750,1741129846255,-500.0,0.00012896,2]
[355419751,1741129846265,-1410.8,0.00012896,2]
[355419752,1741129846274,-501.93443969,0.00012896,2]
[355419753,1741129846285,-500.0,0.00012896,2]
[355419754,1741129846294,-711.730837,0.00012896,2]
[355419755,1741129846304,-500.0,0.00012896,2]
[355419756,1741129846314,-500.0,0.00012896,2]
[355419757,1741129846323,-500.0,0.00012896,2]
[355419758,1741129846332,-500.80749272,0.00012896,2]
[355419759,1741129846343,-662.62,0.00012896,2]
[355419760,1741129846352,-711.730837,0.00012896,2]
[355419761,1741129846362,-500.0,0.00012896,2]
[355419762,1741129846372,-500.0,0.00012896,2]
[355419763,1741129846382,-500.0,0.00012896,2]
[355419764,1741129846392,-697.23,0.00012896,2]
[355419765,1741129846402,-500.0,0.00012896,2]
[355419766,1741129846411,-500.0,0.00012896,2]
[355419767,1741129846421,-501.64865322,0.00012896,2]
[355419768,1741129846431,-500.91730851,0.00012896,2]
[355419769,1741129846440,-500.0,0.00012896,2]
[355419770,1741129846449,-500.0,0.00012896,2]
[355419771,1741129846459,-501.40605697,0.00012896,2]
[355419772,1741129846469,-500.0,0.00012896,2]
[355419773,1741129846478,-500.0,0.00012896,2]
[355419774,1741129846488,-1298.89,0.00012896,2]
[355419775,1741129846497,-151.0,0.00012896,2]
[355419776,1741129846507,-500.0,0.00012896,2]
[355419777,1741129846516,-500.0,0.00012896,2]
[355419778,1741129846525,-500.0,0.00012896,2]
[355419779,1741129846535,-796.21,0.00012896,2]
[355419780,1741129846544,-500.0,0.00012896,2]
[355419781,1741129846553,-500.0,0.00012896,2]
[355419782,1741129846563,-500.0,0.00012896,2]
[355419783,1741129846572,-500.0,0.00012896,2]
[355419784,1741129846581,-500.0,0.00012896,2]
[355419785,1741129846591,-518.53,0.00012896,2]
[355419786,1741129846600,-500.0,0.00012896,2]
[355419787,1741129846610,-1653.149966,0.00012896,2]
[355419788,1741129846620,-500.0,0.00012896,2]
[355419789,1741129846630,-1653.149966,0.00012896,2]
[355419790,1741129846639,-1653.149966,0.00012896,2]
[355419791,1741129846649,-564.15,0.00012896,2]
[355419792,1741129846658,-500.0,0.00012896,2]
[355419793,1741129846667,-500.0,0.00012896,2]
[355419794,1741129846677,-1653.149966,0.00012896,2]
[355419795,1741129846687,-1653.149966,0.00012896,2]
[355419796,1741129846696,-1653.149966,0.00012896,2]
[355419797,1741129846706,-500.0,0.00012896,2]
[355419798,1741129846715,-500.0,0.00012896,2]
[355419799,1741129846725,-500.0,0.00012896,2]
[355419800,1741129846734,-894.87,0.00012896,2]
[355419801,1741129846744,-158.53064064,0.00012896,2]
[355419802,1741129846754,-510.15846038,0.00012896,2]
[355419803,1741129846763,-1548.11,0.00012896,2]
[355419804,1741129846773,-500.0,0.00012896,2]
[355419805,1741129846782,-500.0,0.00012896,2]
[355419806,1741129846792,-500.0,0.00012896,2]
[355419807,1741129846801,-498.02,0.00012896,2]
[355419808,1741129846811,-500.0,0.00012896,2]
[355419809,1741129846820,-500.0,0.00012896,2]
[355419810,1741129846830,-505.33636349,0.00012896,2]
[355419811,1741129846839,-575.19,0.00012896,2]
[355419812,1741129846849,-500.0,0.00012896,2]
[355419813,1741129846858,-500.0,0.00012896,2]
[355419814,1741129846868,-500.0,0.00012896,2]
[355419815,1741129846877,-501.51421179,0.00012896,2]
[355419816,1741129846887,-500.0,0.00012896,2]
[355419817,1741129846897,-1174.62,0.00012896,2]
[355419818,1741129846906,-500.0,0.00012896,2]
[355419819,1741129846916,-500.0,0.00012896,2]
[355419820,1741129846926,-2617.44,0.00012896,2]
[355419821,1741129846935,-500.0,0.00012896,2]
[355419822,1741129846944,-500.0,0.00012896,2]
[355419823,1741129846954,-500.0,0.00012896,2]
[355419824,1741129846963,-500.0,0.00012896,2]
[355419825,1741129846974,-500.0,0.00012896,2]
[355419826,1741129846983,-500.0,0.00012896,2]
[355419827,1741129846993,-503.60880186,0.00012896,2]
[355419828,1741129847003,-1188.67,0.00012896,2]
[355419829,1741129847012,-502.23206071,0.00012896,2]
[355419830,1741129847022,-500.0,0.00012896,2]
[355419831,1741129847032,-500.0,0.00012896,2]
[355419832,1741129847042,-500.0,0.00012896,2]
[355419833,1741129847051,-500.0,0.00012896,2]
[355419834,1741129847061,-500.0,0.00012896,2]
[355419835,1741129847071,-500.0,0.00012896,2]
[355419836,1741129847081,-500.0,0.00012896,2]
[355419837,1741129847094,-500.0,0.00012896,2]
[355419838,1741129847106,-505.90068591,0.00012896,2]
[355419839,1741129847117,-1268.6,0.00012896,2]
[355419840,1741129847127,-151.0,0.00012896,2]
[355419841,1741129847138,-151.0,0.00012896,2]
[355419842,1741129847148,-500.0,0.00012896,2]
[355419843,1741129847158,-151.0,0.00012896,2]
[355419844,1741129847167,-3684.27,0.00012896,2]
[355419845,1741129847177,-1143.05,0.00012896,2]
[355419846,1741129847188,-504.70663205,0.00012896,2]
[355419847,1741129847198,-151.0,0.00012896,2]
[355419848,1741129847207,-151.0,0.00012896,2]
[355419849,1741129847217,-500.0,0.00012896,2]
[355419850,1741129847227,-500.0,0.00012896,2]
[355419851,1741129847237,-151.0,0.00012896,2]
[355419852,1741129847247,-500.0,0.00012896,2]
[355419853,1741129847256,-502.58245825,0.00012896,2]
[355419854,1741129847265,-151.0,0.00012896,2]
[355419855,1741129847274,-151.0,0.00012896,2]
[355419856,1741129847284,-161.13409152,0.00012896,2]
[355419857,1741129847294,-2243.42,0.00012896,2]
[355419858,1741129847303,-500.0,0.00012896,2]
[355419859,1741129847312,-502.75071286,0.00012896,2]
[355419860,1741129847322,-500.0,0.00012896,2]
[355419861,1741129847331,-500.0,0.00012896,2]
[355419862,1741129847341,-500.0,0.00012896,2]
[355419863,1741129847351,-766.3,0.00012896,2]
[355419864,1741129847361,-500.0,0.00012896,2]
[355419865,1741129847370,-500.0,0.00012896,2]
[355419866,1741129847380,-500.0,0.00012896,2]
[355419867,1741129847389,-500.0,0.00012896,2]
[355419868,1741129847399,-500.0,0.00012896,2]
[355419869,1741129847408,-500.0,0.00012896,2]
[355419870,1741129847417,-500.0,0.00012896,2]
[355419871,1741129847427,-509.38265947,0.00012896,2]
[355419872,1741129847436,-3311.43,0.00012896,2]
[355419873,1741129847447,-5556.338531,0.00012896,2]
[355419874,1741129847456,-5556.338531,0.00012896,2]
[355419875,1741129847465,-5556.338531,0.00012896,2]
[355419876,1741129847475,-5556.338531,0.00012896,2]
[355419877,1741129847485,-1053.82,0.00012896,2]
[355419878,1741129847495,-500.0,0.00012896,2]
[355419879,1741129847505,-500.0,0.00012896,2]
[355419880,1741129847515,-500.0,0.00012896,2]
[355419881,1741129847524,-1221.4,0.00012896,2]
[355419882,1741129847534,-1038.29,0.00012896,2]
[355419883,1741129847543,-500.0,0.00012896,2]
[355419884,1741129847554,-500.0,0.00012896,2]
[355419885,1741129847564,-731.98,0.00012896,2]
[355419886,1741129847573,-5556.338531,0.00012896,2]
[355419887,1741129847582,-5556.338531,0.00012896,2]
[355419888,1741129847592,-151.0,0.00012896,2]
[355419889,1741129847602,-5556.338531,0.00012896,2]
[355419890,1741129847618,-151.0,0.00012896,2]
[355419891,1741129847635,-5556.338531,0.00012896,2]
[355419892,1741129847645,-151.0,0.00012896,2]
[355419893,1741129847655,-1567.96,0.00012896,2]
[355419894,1741129847664,-500.0,0.00012896,2]
[355419895,1741129847674,-151.0,0.00012896,2]
[355419896,1741129847684,-500.57950472,0.00012896,2]
[355419897,1741129847694,-500.0,0.00012896,2]
[355419898,1741129847704,-500.0,0.00012896,2]
[355419899,1741129847713,-500.0,0.00012896,2]
[355419900,1741129847724,-500.0,0.00012896,2]
[355419901,1741129847734,-782.34,0.00012896,2]
[355419902,1741129847743,-500.0,0.00012896,2]
[355419903,1741129847752,-500.0,0.00012896,2]
[355419904,1741129847762,-500.0,0.00012896,2]
[355419905,1741129847771,-151.0,0.00012896,2]
[355419906,1741129847781,-151.0,0.00012896,2]
[355419907,1741129847791,-500.0,0.00012896,2]
[355419908,1741129847800,-151.0,0.00012896,2]
[355419909,1741129847810,-151.0,0.00012896,2]
[355419910,1741129847955,-151.0,0.00012896,2]
[355419911,1741129847965,-500.0,0.00012896,2]
[355419912,1741129847976,-151.0,0.00012896,2]
[355419913,1741129847985,-151.0,0.00012896,2]
[355419914,1741129847995,-500.0,0.00012896,2]
[355419915,1741129848004,-500.0,0.00012896,2]
[355419916,1741129848013,-2875.76,0.00012896,2]
[355419917,1741129848023,-500.0,0.00012896,2]
[355419918,1741129848033,-151.0,0.00012896,2]
[355419919,1741129848042,-2417.79,0.00012896,2]
[355419920,1741129848051,-151.0,0.00012896,2]
[355419921,1741129848061,-262.158983,0.00012896,2]
[355419922,1741129848070,-2069.9,0.00012896,2]
[355419923,1741129848080,-932.53,0.00012896,2]
[355419924,1741129848094,-500.0,0.00012896,2]
[355419925,1741129848104,-500.0,0.00012896,2]
[355419926,1741129848113,-500.0,0.00012896,2]
[355419927,1741129848123,-500.0,0.00012896,2]
[355419928,1741129848134,-500.0,0.00012896,2]
[355419929,1741129848143,-500.0,0.00012896,2]
[355419930,1741129848153,-500.0,0.00012896,2]
[355419931,1741129848164,-1015.16,0.00012896,2]
[355419932,1741129848175,-500.0,0.00012896,2]
[355419933,1741129848185,-936.31,0.00012896,2]
[355419934,1741129848194,-500.0,0.00012896,2]
[355419935,1741129848204,-500.0,0.00012896,2]
[355419936,1741129848214,-500.0,0.00012896,2]
[355419937,1741129848224,-500.0,0.00012896,2]
[355419938,1741129848233,-500.0,0.00012896,2]
[355419939,1741129848243,-500.0,0.00012896,2]
[355419940,1741129848252,-503.52448754,0.00012896,2]
[355419941,1741129848261,-1046.58,0.00012896,2]
[355419942,1741129848271,-500.0,0.00012896,2]
[355419943,1741129848281,-500.0,0.00012896,2]
[355419944,1741129848291,-500.0,0.00012896,2]
[355419945,1741129848302,-4993.71,0.00012896,2]
[355419946,1741129848313,-500.0,0.00012896,2]
[355419947,1741129848324,-1095.89,0.00012896,2]
[355419948,1741129848335,-500.0,0.00012896,2]
[355419949,1741129848345,-478.85895716,0.00012896,2]
[355419950,1741129848354,-507.2885787,0.00012896,2]
[355419951,1741129848364,-517.45035348,0.00012896,2]
[355419952,1741129848374,-1485.02,0.00012896,2]
[355419953,1741129848384,-500.0,0.00012896,2]
[355419954,1741129848393,-500.0,0.00012896,2]
[355419955,1741129848404,-500.0,0.00012896,2]
[355419956,1741129848413,-506.50458752,0.00012896,2]
[355419957,1741129848423,-500.0,0.00012896,2]
[355419958,1741129848432,-6599.1,0.00012896,2]
[355419959,1741129848442,-906.52,0.00012896,2]
[355419960,1741129848451,-3308.68,0.00012896,2]
[355419961,1741129848461,-1223.01,0.00012896,2]
[355419962,1741129848472,-500.0,0.00012896,2]
[355419963,1741129848481,-503.7220245,0.00012896,2]
[355419964,1741129848491,-505.87274096,0.00012896,2]
[355419965,1741129848500,-500.0,0.00012896,2]
[355419966,1741129848509,-500.0,0.00012896,2]
[355419967,1741129848519,-566.37288533,0.00012896,2]
[355419968,1741129848532,-4216.07,0.00012896,2]
[355419969,1741129848543,-500.0,0.00012896,2]
[355419970,1741129848556,-500.0,0.00012896,2]
[355419971,1741129848569,-500.0,0.00012896,2]
[355419972,1741129848582,-500.0,0.00012896,2]
[355419973,1741129848595,-151.0,0.00012896,2]
[355419974,1741129848607,-151.0,0.00012896,2]
[355419975,1741129848620,-939.53,0.00012896,2]
[355419976,1741129848630,-151.0,0.00012896,2]
[355419977,1741129848640,-500.96738081,0.00012896,2]
[355419978,1741129848649,-4044.27,0.00012896,2]
[355419979,1741129848659,-151.0,0.00012896,2]
[355419980,1741129848668,-151.0,0.00012896,2]
[355419981,1741129848677,-500.0,0.00012896,2]
[355419982,1741129848686,-500.0,0.00012896,2]
[355419983,1741129848697,-151.0,0.00012896,2]
[355419984,1741129848706,-586.34272196,0.00012896,2]
[355419985,1741129848716,-151.0,0.00012896,2]
[355419986,1741129848726,-513.36176526,0.00012896,2]
[355419987,1741129848736,-500.0,0.00012896,2]
[355419988,1741129848746,-151.0,0.00012896,2]
[355419989,1741129848756,-10479.08,0.00012896,2]
[355419990,1741129848765,-636.12735967,0.00012896,2]
[355419991,1741129848775,-151.0,0.00012896,2]
[355419992,1741129848784,-151.0,0.00012896,2]
[355419993,1741129848794,-151.0,0.00012896,2]
[355419994,1741129848804,-151.0,0.00012896,2]
[355419995,1741129848814,-184.110954,0.00012896,2]
[355419996,1741129848824,-230.40856122,0.00012896,2]
[355419997,1741129848833,-504.11376826,0.00012896,2]
[355419998,1741129848843,-500.0,0.00012896,2]
[355419999,1741129848853,-500.0,0.00012896,2]
[355420000,1741129848863,-500.0,0.00012896,2]
[355420001,1741129848886,-1042.9,0.00012896,2]
[355420002,1741129848902,-502.79581622,0.00012896,2]
[355420003,1741129848921,-500.0,0.00012896,2]
[355420004,1741129848940,-3117.9,0.00012896,2]
[355420005,1741129848956,-500.0,0.00012896,2]
[355420006,1741129848976,-500.0,0.00012896,2]
[355420007,1741129848996,-500.0,0.00012896,2]
[355420008,1741129849016,-648.11141981,0.00012896,2]
[355420009,1741129849033,-500.0,0.00012896,2]
[355420010,1741129849058,-500.0,0.00012896,2]
[355420011,1741129849074,-507.42096783,0.00012896,2]
[355420012,1741129849088,-501.20783394,0.00012896,2]
[355420013,1741129849107,-500.0,0.00012896,2]
[355420014,1741129849122,-500.0,0.00012896,2]
[355420015,1741129849138,-500.0,0.00012896,2]
[355420016,1741129849153,-537.97981269,0.00012896,2]
[355420017,1741129849168,-500.0,0.00012896,2]
[355420018,1741129849185,-2577.23,0.00012896,2]
[355420019,1741129849202,-500.0,0.00012896,2]
[355420020,1741129849217,-515.14579123,0.00012896,2]
[355420021,1741129849234,-155.204342,0.00012896,2]
[355420022,1741129849254,-349.95601276,0.00012896,2]
[355420023,1741129849270,-500.0,0.00012896,2]
[355420024,1741129849285,-1642.92,0.00012896,2]
[355420025,1741129849301,-1196.1,0.00012896,2]
[355420026,1741129849316,-2526.37,0.00012896,2]
[355420027,1741129849331,-500.0,0.00012896,2]
[355420028,1741129849346,-151.0,0.00012896,2]
[355420029,1741129849362,-505.13783683,0.00012896,2]
[355420030,1741129849378,-151.0,0.00012896,2]
[355420031,1741129849394,-500.0,0.00012896,2]
[355420032,1741129849409,-500.0,0.00012896,2]
[355420033,1741129849424,-151.0,0.00012896,2]
[355420034,1741129849440,-151.0,0.00012896,2]
[355420035,1741129849459,-151.0,0.00012896,2]
[355420036,1741129849474,-500.0,0.00012896,2]
[355420037,1741129849490,-152.673512,0.00012896,2]
[355420038,1741129849506,-1452.34,0.00012896,2]
[355420039,1741129849521,-13528.04,0.00012896,2]
[355420040,1741129849537,-500.0,0.00012896,2]
[355420041,1741129849552,-502.26339451,0.00012896,2]
[355420042,1741129849568,-10948.71,0.00012896,2]
[355420043,1741129849583,-500.0,0.00012896,2]
[355420044,1741129849599,-500.0,0.00012896,2]
[355420045,1741129849614,-500.0,0.00012896,2]
[355420046,1741129849631,-500.0,0.00012896,2]
[355420047,1741129849646,-517.9139388,0.00012896,2]
[355420048,1741129849661,-511.38294519,0.00012896,2]
[355420049,1741129849676,-5892.63,0.00012896,2]
[355420050,1741129849691,-500.0,0.00012896,2]
[355420051,1741129849706,-2279.22,0.00012896,2]
[355420052,1741129849721,-2223.07,0.00012896,2]
[355420053,1741129849736,-500.0,0.00012896,2]
[355420054,1741129849751,-501.9686888,0.00012896,2]
[355420055,1741129849767,-500.0,0.00012896,2]
[355420056,1741129849783,-500.0,0.00012896,2]
[355420057,1741129849797,-500.0,0.00012896,2]
[355420058,1741129849814,-503.14593751,0.00012896,2]
[355420059,1741129849829,-500.0,0.00012896,2]